fUST/lending_fUST_20241110
["ID","MTS","AMOUNT","RATE_DAILY","PERIOD"]
[341761172,1731216648938,-500.0,0.0003041,2]
[341761174,1731216648947,-500.0,0.0003041,2]
[341761176,1731216648957,-500.0,0.0003041,2]
[341761178,1731216648966,-500.0,0.0003041,2]
[341761180,1731216648975,-500.0,0.0003041,2]
[341761182,1731216648985,-500.0,0.0003041,2]
[341761183,1731216648994,-500.0,0.0003041,2]
[341761185,1731216649004,-500.0,0.0003041,2]
[341761187,1731216649013,-500.0,0.0003041,2]
[341761189,1731216649022,-500.0,0.0003041,2]
[341761192,1731216649032,-504.87107667,0.0003041,2]
[341761193,1731216649041,-500.0,0.0003041,2]
[341761195,1731216649050,-500.0,0.0003041,2]
[341761197,1731216649059,-508.0891055,0.0003041,2]
[341761199,1731216649068,-525.39666964,0.0003041,2]
[341761201,1731216649077,-500.0,0.0003041,2]
[341761203,1731216649086,-500.0,0.0003041,2]
[341761206,1731216649097,-500.0,0.0003041,2]
[341761208,1731216649106,-520.85177687,0.0003041,2]
[341761210,1731216649115,-359.13613157,0.0003041,2]
[341761212,1731216649124,-238.090457,0.0003041,2]
[341761213,1731216649133,-541.67244956,0.0003041,2]
[341761215,1731216649142,-601.8189262,0.0003041,2]
[341761218,1731216649152,-500.0,0.0003041,2]
[341761219,1731216649161,-500.0,0.0003041,2]
[341761222,1731216649171,-500.0,0.0003041,2]
[341761224,1731216649180,-500.0,0.0003041,2]
[341761225,1731216649190,-526.16448917,0.0003041,2]
[341761227,1731216649199,-515.24913342,0.0003041,2]
[341761229,1731216649208,-500.0,0.0003041,2]
[341761232,1731216649218,-513.11551507,0.0003041,2]
[341761233,1731216649227,-605.80173098,0.0003041,2]
[341761235,1731216649236,-500.0,0.0003041,2]
[341761237,1731216649245,-500.0,0.0003041,2]
[341761239,1731216649254,-500.0,0.0003041,2]
[341761241,1731216649264,-500.0,0.0003041,2]
[341761243,1731216649273,-500.0,0.0003041,2]
[341761245,1731216649283,-500.0,0.0003041,2]
[341761247,1731216649292,-500.0,0.0003041,2]
[341761249,1731216649301,-500.0,0.0003041,2]
[341761251,1731216649310,-500.0,0.0003041,2]
[341761253,1731216649320,-500.0,0.0003041,2]
[341761255,1731216649329,-500.0,0.0003041,2]
[341761257,1731216649339,-500.0,0.0003041,2]
[341761260,1731216649348,-500.0,0.0003041,2]
[341761262,1731216649357,-500.0,0.0003041,2]
[341761263,1731216649366,-500.0,0.0003041,2]
[341761265,1731216649376,-500.0,0.0003041,2]
[341761268,1731216649385,-500.0,0.0003041,2]
[341761270,1731216649394,-500.0,0.0003041,2]
[341761271,1731216649403,-500.0,0.0003041,2]
[341761273,1731216649412,-500.0,0.0003041,2]
[341761275,1731216649423,-500.0,0.0003041,2]
[341761277,1731216649432,-270.91089032,0.0003041,2]
[341761279,1731216649442,-1242.69,0.0003041,2]
[341761281,1731216649451,-500.0,0.0003041,2]
[341761283,1731216649460,-500.0,0.0003041,2]
[341761285,1731216649469,-500.0,0.0003041,2]
[341761287,1731216649478,-500.0,0.0003041,2]
[341761289,1731216649487,-500.0,0.0003041,2]
[341761291,1731216649496,-500.0,0.0003041,2]
[341761293,1731216649505,-500.0,0.0003041,2]
[341761295,1731216649514,-513.14268996,0.0003041,2]
[341761297,1731216649523,-500.0,0.0003041,2]
[341761299,1731216649532,-500.0,0.0003041,2]
[341761301,1731216649543,-500.0,0.0003041,2]
[341761303,1731216649551,-500.0,0.0003041,2]
[341761305,1731216649560,-500.0,0.0003041,2]
[341761307,1731216649569,-500.0,0.0003041,2]
[341761309,1731216649579,-500.0,0.0003041,2]
[341761311,1731216649587,-1107.39,0.0003041,2]
[341761320,1731216649671,-647.67395735,0.0003041,2]
[341761322,1731216649680,-500.0,0.0003041,2]
[341761324,1731216649690,-500.0,0.0003041,2]
[341761326,1731216649698,-500.0,0.0003041,2]
[341761328,1731216649708,-3260.88,0.0003041,2]
[341761330,1731216649717,-500.0,0.0003041,2]
[341761332,1731216649727,-346.09264201,0.0003041,2]
[341761334,1731216649737,-500.0,0.0003041,2]
[341761336,1731216649752,-500.0,0.0003041,2]
[341761338,1731216649761,-500.0,0.0003041,2]
[341761340,1731216649772,-500.0,0.0003041,2]
[341761342,1731216649784,-529.41855508,0.0003041,2]
[341761344,1731216649793,-500.0,0.0003041,2]
[341761346,1731216649803,-500.0,0.0003041,2]
[341761348,1731216649814,-500.0,0.0003041,2]
[341761350,1731216649824,-500.0,0.0003041,2]
[341761352,1731216649833,-568.04405163,0.0003041,2]
[341761354,1731216649843,-500.0,0.0003041,2]
[341761356,1731216649852,-1555.63,0.0003041,2]
[341761358,1731216649861,-518.89438473,0.0003041,2]
[341761360,1731216649870,-500.0,0.0003041,2]
[341761362,1731216649880,-500.0,0.0003041,2]
[341761364,1731216649889,-500.0,0.0003041,2]
[341761366,1731216649899,-500.0,0.0003041,2]
[341761368,1731216649909,-500.0,0.0003041,2]
[341761370,1731216649920,-500.0,0.0003041,2]
[341761372,1731216649930,-500.0,0.0003041,2]
[341761373,1731216649939,-509.11253544,0.0003041,2]
[341761374,1731216649948,-500.0,0.0003041,2]
[341761375,1731216649956,-500.0,0.0003041,2]
[341761376,1731216649966,-500.0,0.0003041,2]
[341761377,1731216649975,-500.0,0.0003041,2]
[341761378,1731216649987,-500.0,0.0003041,2]
[341761379,1731216649999,-500.0,0.0003041,2]
[341761380,1731216650008,-500.0,0.0003041,2]
[341761381,1731216650018,-500.0,0.0003041,2]
[341761382,1731216650027,-500.0,0.0003041,2]
[341761383,1731216650036,-500.0,0.0003041,2]
[341761384,1731216650045,-500.0,0.0003041,2]
[341761385,1731216650054,-519.12800241,0.0003041,2]
[341761386,1731216650063,-500.0,0.0003041,2]
[341761387,1731216650072,-500.0,0.0003041,2]
[341761388,1731216650080,-500.0,0.0003041,2]
[341761389,1731216650089,-500.0,0.0003041,2]
[341761390,1731216650098,-2336.0,0.0003041,2]
[341761391,1731216650107,-500.0,0.0003041,2]
[341761392,1731216650116,-220.27403724,0.0003041,2]
[341761394,1731216650125,-224.85447702,0.0003041,2]
[341761395,1731216650134,-247.15524083,0.0003041,2]
[341761397,1731216650143,-666.24,0.0003041,2]
[341761399,1731216650152,-500.0,0.0003041,2]
[341761401,1731216650161,-512.4226691,0.0003041,2]
[341761403,1731216650173,-500.0,0.0003041,2]
[341761405,1731216650182,-500.0,0.0003041,2]
[341761407,1731216650192,-500.0,0.0003041,2]
[341761409,1731216650201,-500.0,0.0003041,2]
[341761411,1731216650211,-412.67463592,0.0003041,2]
[341761413,1731216650220,-500.0,0.0003041,2]
[341761415,1731216650229,-510.03452556,0.0003041,2]
[341761417,1731216650238,-500.0,0.0003041,2]
[341761419,1731216650247,-500.0,0.0003041,2]
[341761421,1731216650257,-500.0,0.0003041,2]
[341761423,1731216650266,-500.0,0.0003041,2]
[341761425,1731216650275,-500.0,0.0003041,2]
[341761427,1731216650284,-500.0,0.0003041,2]
[341761429,1731216650293,-500.0,0.0003041,2]
[341761431,1731216650302,-500.0,0.0003041,2]
[341761433,1731216650311,-500.0,0.0003041,2]
[341761435,1731216650320,-500.0,0.0003041,2]
[341761437,1731216650329,-516.1781557,0.0003041,2]
[341761438,1731216650339,-500.0,0.0003041,2]
[341761441,1731216650348,-500.0,0.0003041,2]
[341761442,1731216650358,-500.0,0.0003041,2]
[341761444,1731216650367,-500.0,0.0003041,2]
[341761446,1731216650376,-500.0,0.0003041,2]
[341761448,1731216650385,-500.0,0.0003041,2]
[341761450,1731216650393,-500.0,0.0003041,2]
[341761452,1731216650403,-500.0,0.0003041,2]
[341761454,1731216650411,-500.0,0.0003041,2]
[341761456,1731216650422,-500.0,0.0003041,2]
[341761458,1731216650431,-500.0,0.0003041,2]
[341761460,1731216650439,-171.51789245,0.0003041,2]
[341761462,1731216650449,-500.0,0.0003041,2]
[341761464,1731216650458,-500.0,0.0003041,2]
[341761466,1731216650467,-500.0,0.0003041,2]
[341761468,1731216650477,-500.0,0.0003041,2]
[341761470,1731216650486,-500.0,0.0003041,2]
[341761472,1731216650495,-500.0,0.0003041,2]
[341761474,1731216650504,-500.0,0.0003041,2]
[341761476,1731216650513,-500.0,0.0003041,2]
[341761478,1731216650521,-500.0,0.0003041,2]
[341761480,1731216650531,-500.0,0.0003041,2]
[341761482,1731216650540,-500.0,0.0003041,2]
[341761484,1731216650549,-500.0,0.0003041,2]
[341761486,1731216650558,-500.0,0.0003041,2]
[341761488,1731216650567,-500.0,0.0003041,2]
[341761490,1731216650576,-500.0,0.0003041,2]
[341761492,1731216650585,-516.64611798,0.0003041,2]
[341761494,1731216650594,-500.0,0.0003041,2]
[341761496,1731216650603,-527.77114259,0.0003041,2]
[341761498,1731216650612,-500.0,0.0003041,2]
[341761500,1731216650621,-500.0,0.0003041,2]
[341761501,1731216650630,-500.0,0.0003041,2]
[341761503,1731216650639,-326.11116451,0.0003041,2]
[341761505,1731216650648,-500.0,0.0003041,2]
[341761507,1731216650658,-533.24436702,0.0003041,2]
[341761509,1731216650669,-500.0,0.0003041,2]
[341761511,1731216650680,-500.0,0.0003041,2]
[341761513,1731216650689,-501.40030931,0.0003041,2]
[341761515,1731216650698,-500.0,0.0003041,2]
[341761517,1731216650707,-500.0,0.0003041,2]
[341761519,1731216650716,-500.0,0.0003041,2]
[341761521,1731216650726,-540.91142213,0.0003041,2]
[341761523,1731216650736,-500.0,0.0003041,2]
[341761525,1731216650747,-500.0,0.0003041,2]
[341761527,1731216650756,-500.0,0.0003041,2]
[341761529,1731216650766,-500.0,0.0003041,2]
[341761531,1731216650775,-500.0,0.0003041,2]
[341761533,1731216650784,-500.0,0.0003041,2]
[341761535,1731216650793,-500.0,0.0003041,2]
[341761537,1731216650802,-500.0,0.0003041,2]
[341761539,1731216650811,-521.47574407,0.0003041,2]
[341761541,1731216650820,-585.45,0.0003041,2]
[341761543,1731216650830,-500.0,0.0003041,2]
[341761545,1731216650839,-500.0,0.0003041,2]
[341761547,1731216650848,-500.0,0.0003041,2]
[341761549,1731216650857,-500.0,0.0003041,2]
[341761551,1731216650866,-500.0,0.0003041,2]
[341761553,1731216650875,-500.0,0.0003041,2]
[341761555,1731216650884,-500.0,0.0003041,2]
[341761557,1731216650893,-500.0,0.0003041,2]
[341761559,1731216650902,-500.0,0.0003041,2]
[341761561,1731216650910,-500.0,0.0003041,2]
[341761563,1731216650920,-500.0,0.0003041,2]
[341761565,1731216650929,-500.0,0.0003041,2]
[341761567,1731216650938,-500.0,0.0003041,2]
[341761569,1731216650947,-500.0,0.0003041,2]
[341761571,1731216650956,-500.0,0.0003041,2]
[341761573,1731216650965,-500.0,0.0003041,2]
[341761575,1731216650974,-500.0,0.0003041,2]
[341761577,1731216650983,-500.0,0.0003041,2]
[341761578,1731216650992,-500.0,0.0003041,2]
[341761580,1731216651001,-524.81446869,0.0003041,2]
[341761582,1731216651010,-511.63574336,0.0003041,2]
[341761584,1731216651019,-500.0,0.0003041,2]
[341761586,1731216651028,-263.98229129,0.0003041,2]
[341761588,1731216651037,-500.0,0.0003041,2]
[341761590,1731216651046,-501.10527432,0.00030455,5]
[341761592,1731216651055,-193.8793269,0.00030469,5]
[341761594,1731216651065,-501.85984564,0.00030469,5]
[341761596,1731216651073,-500.0,0.00030473,5]
[341761598,1731216651082,-500.0,0.00030473,5]
[341761600,1731216651091,-501.55656033,0.00030473,5]
[341761602,1731216651100,-162.55920024,0.00030473,5]
[341761604,1731216651109,-502.03067635,0.00030473,5]
[341761606,1731216651118,-500.0,0.00030473,5]
[341761608,1731216651127,-628.30696876,0.00030473,5]
[341761610,1731216651136,-500.0,0.00030473,5]
[341761612,1731216651145,-500.0,0.00030473,2]
[341761614,1731216651154,-500.0,0.00030473,2]
[341761616,1731216651163,-178.15286777,0.00030665,2]
[341761618,1731216651175,-2995.24,0.00030682,2]
[341761620,1731216651184,-500.0,0.00030683,2]
[341761622,1731216651193,-500.0,0.00030683,2]
[341761624,1731216651202,-2995.24,0.00030683,2]
[341761626,1731216651212,-2995.24,0.00030683,2]
[341761628,1731216651221,-2995.24,0.00030683,2]
[341761630,1731216651230,-2995.24,0.00030683,2]
[341761632,1731216651239,-500.0,0.00030683,2]
[341761634,1731216651248,-500.0,0.00030683,2]
[341761636,1731216651257,-500.0,0.00030683,2]
[341761638,1731216651266,-172.49178045,0.00030683,2]
[341761640,1731216651275,-323.28964992,0.00030683,2]
[341761642,1731216651284,-235.62868588,0.00030683,2]
[341761644,1731216651292,-534.69200306,0.00030683,2]
[341761645,1731216651310,-294.70716615,0.00030683,2]
[341761647,1731216651319,-494.82486287,0.00030683,2]
[341761650,1731216651329,-500.0,0.00030683,2]
[341761652,1731216651338,-500.0,0.00030683,2]
[341761653,1731216651348,-500.0,0.00030683,2]
[341761656,1731216651357,-500.0,0.00030683,2]
[341761657,1731216651367,-266.57310774,0.00030683,2]
[341761660,1731216651377,-500.0,0.00030683,2]
[341761662,1731216651386,-500.0,0.00030683,2]
[341761671,1731216651395,-500.0,0.00030683,2]
[341761673,1731216651477,-300.0,0.00030683,2]
[341761675,1731216651486,-500.0,0.00030683,2]
[341761677,1731216651495,-564.76,0.00030683,2]
[341761679,1731216651504,-514.42369418,0.00030683,2]
[341761681,1731216651513,-500.0,0.00030684,2]
[341761683,1731216651522,-284.13124583,0.00030684,2]
[341761685,1731216651531,-514.81851598,0.00030684,2]
[341761687,1731216651542,-531.73552024,0.00030684,2]
[341761689,1731216651552,-500.0,0.00030684,2]
[341761690,1731216651562,-500.0,0.00030684,2]
[341761693,1731216651571,-512.20158319,0.00030684,2]
[341761694,1731216651581,-514.67752148,0.00030684,2]
[341761696,1731216651590,-501.97682941,0.00030684,2]
[341761698,1731216651598,-500.0,0.00030684,2]
[341761701,1731216651608,-527.89388226,0.00030684,2]
[341761703,1731216651617,-500.0,0.00030684,2]
[341761704,1731216651627,-530.51097711,0.00030684,2]
[341761706,1731216651636,-500.0,0.00030684,2]
[341761708,1731216651644,-500.0,0.00030684,2]
[341761710,1731216651654,-500.0,0.00030684,2]
[341761712,1731216651663,-500.0,0.00030684,2]
[341761714,1731216651674,-266.92957679,0.00030684,2]
[341761716,1731216651683,-500.0,0.00030684,2]
[341761718,1731216651692,-645.37774644,0.00030684,2]
[341761720,1731216651703,-500.0,0.00030684,2]
[341761722,1731216651713,-500.0,0.00030684,2]
[341761724,1731216651725,-366.11546288,0.00030684,2]
[341761726,1731216651734,-380.86293862,0.00030684,2]
[341761728,1731216651743,-500.0,0.00030684,2]
[341761730,1731216651752,-500.0,0.00030684,2]
[341761732,1731216651762,-500.0,0.00030684,2]
[341761734,1731216651773,-617.90678895,0.00030684,2]
[341761736,1731216651782,-569.75075464,0.00030684,2]
[341761738,1731216651792,-500.0,0.00030684,2]
[341761740,1731216651801,-500.0,0.00030684,2]
[341761742,1731216651811,-518.47912545,0.00030684,2]
[341761744,1731216651821,-636.56521715,0.00030684,2]
[341761746,1731216651830,-500.0,0.00030684,2]
[341761748,1731216651839,-500.0,0.00030684,2]
[341761750,1731216651847,-500.0,0.00030684,2]
[341761752,1731216651857,-201.59752268,0.00030684,2]
[341761754,1731216651866,-500.0,0.00030684,2]
[341761756,1731216651875,-508.99333803,0.00030684,2]
[341761758,1731216651885,-549.38981168,0.00030684,2]
[341761760,1731216651894,-450.0,0.00030684,2]
[341761762,1731216651903,-500.0,0.00030684,2]
[341761764,1731216651912,-500.0,0.00030684,2]
[341761766,1731216651923,-500.0,0.00030684,2]
[341761768,1731216651932,-523.4621819,0.00030684,2]
[341761770,1731216651941,-500.0,0.00030684,2]
[341761772,1731216651950,-525.40326306,0.00030684,2]
[341761774,1731216651959,-500.0,0.00030684,2]
[341761776,1731216651968,-473.36297493,0.00030684,2]
[341761778,1731216651978,-500.0,0.00030684,2]
[341761780,1731216651988,-477.70867283,0.00030684,2]
[341761782,1731216651997,-500.0,0.00030684,2]
[341761784,1731216652006,-500.0,0.00030684,2]
[341761786,1731216652015,-500.0,0.00030684,2]
[341761788,1731216652025,-500.0,0.00030684,2]
[341761790,1731216652034,-500.0,0.00030684,2]
[341761792,1731216652043,-513.86541561,0.00030684,2]
[341761794,1731216652052,-500.0,0.00030684,2]
[341761796,1731216652061,-500.0,0.00030684,2]
[341761798,1731216652071,-500.0,0.00030684,2]
[341761800,1731216652080,-500.0,0.00030684,2]
[341761802,1731216652090,-500.0,0.00030684,2]
[341761804,1731216652099,-500.0,0.00030684,2]
[341761806,1731216652109,-500.0,0.00030684,2]
[341761808,1731216652118,-500.0,0.00030684,2]
[341761810,1731216652128,-512.77413179,0.00030684,2]
[341761812,1731216652137,-500.0,0.00030684,2]
[341761814,1731216652147,-500.0,0.00030684,2]
[341761816,1731216652156,-500.0,0.00030684,2]
[341761818,1731216652166,-500.0,0.00030684,2]
[341761820,1731216652176,-500.0,0.00030684,2]
[341761822,1731216652186,-500.0,0.00030684,2]
[341761823,1731216652195,-526.51610334,0.00030684,2]
[341761825,1731216652203,-500.0,0.00030684,2]
[341761827,1731216652212,-500.0,0.00030684,2]
[341761829,1731216652221,-500.0,0.00030684,2]
[341761831,1731216652230,-500.0,0.00030684,2]
[341761833,1731216652241,-500.0,0.00030684,2]
[341761835,1731216652250,-200.0,0.00030684,2]
[341761837,1731216652259,-500.0,0.00030684,2]
[341761839,1731216652269,-500.0,0.00030684,2]
[341761841,1731216652278,-500.0,0.00030684,2]
[341761843,1731216652287,-500.0,0.00030684,2]
[341761845,1731216652298,-500.0,0.00030684,2]
[341761847,1731216652307,-500.0,0.00030684,2]
[341761849,1731216652316,-500.0,0.00030684,2]
[341761851,1731216652326,-500.0,0.00030684,2]
[341761853,1731216652334,-500.0,0.00030684,2]
[341761855,1731216652343,-316.13347583,0.00030684,2]
[341761857,1731216652352,-500.0,0.00030684,2]
[341761859,1731216652361,-500.0,0.00030684,2]
[341761861,1731216652370,-3885.07,0.00030684,2]
[341761863,1731216652379,-500.0,0.00030684,2]
[341761865,1731216652388,-622.1727515,0.00030684,2]
[341761867,1731216652397,-500.0,0.00030684,2]
[341761869,1731216652406,-504.24712405,0.00030684,2]
[341761871,1731216652415,-500.0,0.00030684,2]
[341761873,1731216652426,-500.0,0.00030684,2]
[341761875,1731216652434,-500.0,0.00030684,2]
[341761877,1731216652444,-500.0,0.00030684,2]
[341761879,1731216652453,-500.0,0.00030684,2]
[341761880,1731216652463,-500.0,0.00030684,2]
[341761881,1731216652472,-500.0,0.00030684,2]
[341761882,1731216652481,-1342.13,0.00030684,2]
[341761883,1731216652490,-500.0,0.00030684,2]
[341761884,1731216652499,-535.17611355,0.00030684,2]
[341761885,1731216652508,-293.11428307,0.00030684,2]
[341761886,1731216652517,-500.0,0.00030684,2]
[341761887,1731216652526,-500.0,0.00030684,2]
[341761888,1731216652535,-500.0,0.00030684,2]
[341761889,1731216652543,-791.15,0.00030684,2]
[341761891,1731216652553,-500.0,0.00030684,2]
[341761893,1731216652561,-276.88077208,0.00030684,2]
[341761895,1731216652571,-423.91307647,0.00030684,2]
[341761897,1731216652580,-500.0,0.00030684,2]
[341761899,1731216652589,-500.0,0.00030684,2]
[341761901,1731216652598,-500.0,0.00030684,2]
[341761903,1731216652607,-500.0,0.00030684,2]
[341761905,1731216652617,-500.0,0.00030684,2]
[341761907,1731216652626,-500.0,0.00030684,2]
[341761909,1731216652635,-500.0,0.00030684,2]
[341761911,1731216652644,-500.0,0.00030684,2]
[341761913,1731216652653,-500.0,0.00030684,2]
[341761915,1731216652663,-500.0,0.00030684,2]
[341761917,1731216652674,-500.0,0.00030684,2]
[341761919,1731216652683,-500.0,0.00030684,2]
[341761922,1731216652693,-500.0,0.00030684,2]
[341761923,1731216652702,-500.0,0.00030684,2]
[341761926,1731216652711,-500.0,0.00030684,2]
[341761928,1731216652723,-500.0,0.00030684,2]
[341761930,1731216652732,-499.96047131,0.00030684,2]
[341761931,1731216652743,-500.0,0.00030684,2]
[341761933,1731216652753,-500.0,0.00030684,2]
[341761935,1731216652762,-500.0,0.00030684,2]
[341761937,1731216652771,-529.97100649,0.00030684,2]
[341761940,1731216652781,-500.0,0.00030684,2]
[341761941,1731216652791,-500.0,0.00030684,2]
[341761943,1731216652801,-500.0,0.00030684,2]
[341761945,1731216652812,-500.0,0.00030684,2]
[341761947,1731216652822,-500.0,0.00030684,2]
[341761949,1731216652831,-526.87673837,0.00030684,2]
[341761951,1731216652841,-500.0,0.00030684,2]
[341761953,1731216652850,-564.03504675,0.00030684,2]
[341761955,1731216652859,-340.19102485,0.00030684,2]
[341761976,1731216653046,-159.80897515,0.00030684,2]
[341761978,1731216653056,-500.0,0.00030684,2]
[341761980,1731216653065,-99.88102485,0.00030684,2]
[341761983,1731216653080,-500.0,0.0003041,2]
[341761985,1731216653089,-400.11897515,0.00030684,2]
[341761987,1731216653098,-64.98813385,0.00030684,2]
[341761989,1731216653109,-435.01186615,0.00030684,2]
[341761991,1731216653119,-236.99131385,0.00030684,2]
[341761993,1731216653129,-83.79937347,0.00030684,2]
[341761995,1731216653139,-462.20062653,0.00030684,2]
[341761997,1731216653151,-37.79937347,0.00030684,2]
[341761999,1731216653162,-469.94307207,0.00030684,2]
[341762001,1731216653175,-30.05692793,0.00030684,2]
[341762003,1731216653184,-498.51207967,0.00030684,2]
[341762006,1731216653197,-1.48792033,0.00030684,2]
[341762008,1731216653206,-500.0,0.00030684,2]
[341762010,1731216653216,-2.93707967,0.00030684,2]
[341762012,1731216653227,-497.06292033,0.00030684,2]
[341762014,1731216653238,-500.0,0.00030684,2]
[341762016,1731216653247,-164.61139386,0.00030684,2]
[341762018,1731216653261,-318.58121055,0.00030684,2]
[341762020,1731216653270,-425.67878945,0.00030684,2]
[341762022,1731216653283,-74.32121055,0.00030684,2]
[341762024,1731216653292,-500.0,0.00030684,2]
[341762027,1731216653302,-214.53283345,0.00030684,2]
[341762029,1731216653313,-285.46716655,0.00030684,2]
[341762031,1731216653322,-223.05283345,0.00030684,2]
[341762033,1731216653333,-276.94716655,0.00030684,2]
[341762035,1731216653343,-293.54883345,0.00030684,2]
[341762037,1731216653355,-206.45116655,0.00030684,2]
[341762039,1731216653364,-500.0,0.00030684,2]
[341762041,1731216653375,-288.54883345,0.00030684,2]
[341762044,1731216653391,-211.45116655,0.00030684,2]
[341762046,1731216653400,-323.74883345,0.00030684,2]
[341762048,1731216653411,-176.25116655,0.00030684,2]
[341762050,1731216653422,-500.0,0.00030684,2]
[341762052,1731216653431,-500.0,0.00030684,2]
[341762054,1731216653440,-210.30849333,0.00030684,2]
[341762078,1731216653643,-158.282,0.0002967,30]
[341762080,1731216653652,-500.0,0.00030136,2]
[341762082,1731216653662,-622.31348716,0.00030136,2]
[341762084,1731216653674,-500.0,0.0003041,2]
[341762086,1731216653685,-500.0,0.0003041,2]
[341762088,1731216653694,-378.81593139,0.00030684,2]
[341762089,1731216653704,-500.0,0.00030684,2]
[341762092,1731216653715,-596.51173812,0.00030684,2]
[341762094,1731216653725,-500.0,0.00030684,2]
[341762095,1731216653734,-500.0,0.00030684,2]
[341762097,1731216653745,-525.71504576,0.00030684,2]
[341762099,1731216653755,-500.0,0.00030684,2]
[341762102,1731216653765,-500.0,0.00030684,2]
[341762103,1731216653775,-500.0,0.00030684,2]
[341762105,1731216653785,-500.0,0.00030684,2]
[341762108,1731216653794,-500.0,0.00030684,2]
[341762109,1731216653803,-500.0,0.00030684,2]
[341762111,1731216653814,-500.0,0.00030684,2]
[341762113,1731216653823,-500.0,0.00030684,2]
[341762115,1731216653833,-500.0,0.00030684,2]
[341762117,1731216653842,-500.0,0.00030684,2]
[341762119,1731216653851,-500.0,0.00030684,2]
[341762121,1731216653861,-500.0,0.00030684,2]
[341762123,1731216653870,-503.09023533,0.00030684,2]
[341762125,1731216653878,-1242.69,0.00030684,2]
[341762127,1731216653887,-500.0,0.00030684,2]
[341762129,1731216653896,-500.0,0.00030684,2]
[341762131,1731216653905,-500.0,0.00030684,2]
[341762133,1731216653914,-500.0,0.00030684,2]
[341762135,1731216653925,-500.0,0.00030684,2]
[341762137,1731216653934,-500.0,0.00030684,2]
[341762139,1731216653943,-500.0,0.00030684,2]
[341762141,1731216653952,-500.0,0.00030684,2]
[341762143,1731216653961,-500.0,0.00030684,2]
[341762145,1731216653970,-517.22877872,0.00030684,2]
[341762147,1731216653979,-500.0,0.00030684,2]
[341762149,1731216653988,-500.0,0.00030684,2]
[341762151,1731216653997,-500.0,0.00030684,2]
[341762153,1731216654007,-1107.39,0.00030684,2]
[341762155,1731216654017,-500.0,0.00030684,2]
[341762157,1731216654026,-611.57841997,0.00030684,2]
[341762159,1731216654035,-500.0,0.00030684,2]
[341762161,1731216654044,-3260.88,0.00030684,2]
[341762163,1731216654053,-500.0,0.00030684,2]
[341762164,1731216654062,-500.0,0.00030684,2]
[341762166,1731216654071,-500.0,0.00030684,2]
[341762168,1731216654080,-500.0,0.00030684,2]
[341762170,1731216654089,-500.0,0.00030684,2]
[341762172,1731216654098,-500.0,0.00030684,2]
[341762174,1731216654107,-500.0,0.00030684,2]
[341762176,1731216654116,-500.0,0.00030684,2]
[341762178,1731216654126,-500.0,0.00030684,2]
[341762180,1731216654134,-500.0,0.00030684,2]
[341762182,1731216654144,-1555.63,0.00030684,2]
[341762184,1731216654154,-500.0,0.00030684,2]
[341762186,1731216654163,-500.0,0.00030684,2]
[341762188,1731216654174,-500.0,0.00030684,2]
[341762190,1731216654183,-519.24064583,0.00030684,2]